bitfinex-derivatives/quotes_BTCF0:USTF0_20250320
["timestamp","ask_amount","ask_price","bid_price","bid_amount"]
[1742472758361,0.14024406,85427.0,85426.0,0.1171048]
[1742472758560,0.25734806,85427.0,85426.0,0.2308648]
[1742472758865,0.14024406,85427.0,85426.0,0.2308648]
[1742472760054,0.001,85427.0,85426.0,0.2308648]
[1742472761951,0.14024406,85437.0,85436.0,0.1170911]
[1742472762260,0.00064,85450.0,85441.0,0.1170843]
[1742472762565,0.033,85449.0,85441.0,0.1170843]
[1742472763064,0.0915373,85449.0,85441.0,0.1170843]
[1742472763364,0.1170783,85446.0,85441.0,0.1170843]
[1742472763564,0.1170783,85446.0,85441.0,0.1783843]
[1742472763762,0.0303,85445.0,85441.0,0.1783843]
[1742472764759,0.1170807,85444.0,85441.0,0.1783843]
[1742472765065,0.4818829,85442.0,85441.0,0.1783843]
[1742472765256,0.4818829,85442.0,85441.0,0.1474843]
[1742472765665,0.5131829,85442.0,85441.0,0.1474843]
[1742472769962,0.5131829,85442.0,85441.0,0.0304]
[1742472770163,0.1170843,85441.0,85440.0,4e-05]
[1742472770357,0.2125843,85441.0,85440.0,4e-05]
[1742472770573,0.23542425,85441.0,85440.0,4e-05]
[1742472770866,0.1170925,85435.0,85434.0,0.1501935]
[1742472771075,0.4778925,85435.0,85434.0,0.1501935]
[1742472771871,0.5415925,85435.0,85434.0,0.1501935]
[1742472773675,0.5415925,85435.0,85434.0,0.1819935]
[1742472773972,0.5425925,85435.0,85434.0,0.1819935]
[1742472774172,0.5455925,85435.0,85434.0,0.1819935]
[1742472777966,0.6455925,85435.0,85434.0,0.0331]
[1742472778161,0.5455925,85435.0,85434.0,0.1501939]
[1742472778373,0.5455925,85435.0,85434.0,0.1826939]
[1742472780575,0.5455925,85435.0,85434.0,0.1501939]
[1742472781164,0.5455925,85435.0,85434.0,0.1817939]
[1742472781884,0.5455925,85435.0,85434.0,0.1501939]
[1742472782378,0.6455925,85435.0,85434.0,0.0331]
[1742472783479,0.5455925,85435.0,85434.0,0.1501939]
[1742472783971,0.5455925,85435.0,85434.0,0.1824939]
[1742472784182,0.55839837,85435.0,85434.0,0.1824939]
[1742472784376,0.65839837,85435.0,85434.0,0.1824939]
[1742472784971,0.55839837,85435.0,85434.0,0.1824939]
[1742472786078,0.1519925,85435.0,85434.0,0.1824939]
[1742472786474,0.1519925,85435.0,85434.0,0.2141939]
[1742472786670,0.1519925,85435.0,85434.0,1.7141939]
[1742472786979,0.1519925,85435.0,85434.0,0.2141939]
[1742472787180,0.1647775,85435.0,85434.0,0.2141939]
[1742472787481,0.1519925,85435.0,85434.0,0.2141939]
[1742472787978,0.1842925,85435.0,85434.0,0.2141939]
[1742472788281,0.19705703,85435.0,85434.0,0.2141939]
[1742472788979,0.16475703,85435.0,85434.0,0.2141939]
[1742472789178,0.004,85435.0,85434.0,0.2141939]
[1742472790182,0.004,85435.0,85434.0,0.3281139]
[1742472790388,0.17503398,85446.0,85445.0,0.1170788]
[1742472790773,0.17503398,85446.0,85445.0,0.1823788]
[1742472791585,0.09181154,85450.0,85449.0,0.1170733]
[1742472792370,0.09181154,85450.0,85449.0,0.1821733]
[1742472793283,0.09581154,85450.0,85449.0,0.1821733]
[1742472793682,0.09781154,85450.0,85449.0,0.1821733]
[1742472794078,0.09781154,85450.0,85449.0,0.1939608]
[1742472794983,0.03927554,85450.0,85449.0,0.1939608]
[1742472795181,0.15634744,85450.0,85449.0,0.1939608]
[1742472797889,0.18744744,85450.0,85449.0,0.1939608]
[1742472800497,0.15634744,85450.0,85449.0,0.1939608]
[1742472800791,0.00617554,85450.0,85449.0,0.1939608]
[1742472801582,0.15364744,85450.0,85449.0,0.1939608]
[1742472801788,0.15364744,85450.0,85449.0,0.20853135]
[1742472801991,0.03657554,85450.0,85449.0,0.20853135]
[1742472803394,0.15364744,85450.0,85449.0,0.20853135]
[1742472803795,0.03657554,85450.0,85449.0,0.20853135]
[1742472803996,0.03657554,85450.0,85449.0,0.1939608]
[1742472805400,0.15364744,85450.0,85449.0,0.1939608]
[1742472807500,0.18584744,85450.0,85449.0,0.1939608]
[1742472808189,0.03657554,85450.0,85449.0,0.1939608]
[1742472808793,0.15364744,85450.0,85449.0,0.1939608]
[1742472810994,0.18524744,85450.0,85449.0,0.1939608]
[1742472811584,0.18524744,85450.0,85449.0,0.1611608]
[1742472811789,0.18524744,85450.0,85440.0,0.04144261]
[1742472811790,0.0585398,85445.0,85441.0,4e-05]
[1742472811998,0.5778829,85442.0,85441.0,4e-05]
[1742472812197,0.61037252,85442.0,85441.0,4e-05]
[1742472812501,0.67207252,85442.0,85441.0,4e-05]
[1742472812797,0.0585445,85438.0,85435.0,0.058546]
[1742472812994,0.1170925,85436.0,85435.0,0.058586]
[1742472813194,0.1846925,85436.0,85435.0,0.1756757]
[1742472813396,0.0991,85436.0,85435.0,0.1756757]
[1742472813609,0.0617,85436.0,85435.0,0.1756757]
[1742472813896,0.1787911,85436.0,85435.0,0.2072357]
[1742472814086,0.1807911,85436.0,85435.0,0.2072357]
[1742472815004,0.1827911,85436.0,85435.0,0.2072357]
[1742472816102,0.1827911,85436.0,85435.0,0.1756357]
[1742472822004,0.1927911,85436.0,85435.0,0.1756357]
[1742472823105,0.0757,85436.0,85435.0,0.1756357]
[1742472823309,0.1927911,85436.0,85435.0,0.1756357]
[1742472824303,0.0757,85436.0,85435.0,0.2079357]
[1742472824607,0.1927911,85436.0,85435.0,0.2079357]
[1742472826606,0.014,85436.0,85435.0,0.2079357]
[1742472826799,0.004,85436.0,85435.0,0.2079357]
[1742472827197,0.004,85436.0,85435.0,0.2401357]
[1742472827404,0.004,85436.0,85435.0,1.75473487]
[1742472827800,0.004,85436.0,85435.0,0.25473487]
[1742472828511,0.004,85436.0,85435.0,0.2401357]
[1742472834414,0.1210911,85436.0,85435.0,0.2401357]
[1742472835116,0.004,85436.0,85435.0,0.2401357]
[1742472835317,0.068,85436.0,85435.0,0.2401357]
[1742472835618,0.0368,85436.0,85435.0,0.2401357]
[1742472840713,0.1538911,85436.0,85435.0,0.2401357]
[1742472840908,0.0368,85436.0,85435.0,0.44986638]
[1742472843723,0.0368,85436.0,85435.0,0.2401357]
[1742472843929,0.0368,85436.0,85435.0,1.7401357]
[1742472844924,0.0368,85436.0,85435.0,1.7547478]
[1742472846122,0.0368,85436.0,85435.0,1.7401357]
[1742472848523,0.0368,85436.0,85435.0,2.02053263]
[1742472853126,0.1538911,85436.0,85435.0,0.48823263]
[1742472853318,0.1869911,85436.0,85435.0,0.48823263]
[1742472853727,0.1869911,85436.0,85435.0,0.2078357]
[1742472855024,0.1869911,85436.0,85435.0,0.2404357]
[1742472855420,0.1869911,85436.0,85435.0,0.2078357]
[1742472855625,0.56022705,85436.0,85435.0,0.1756357]
[1742472855820,0.5477911,85436.0,85435.0,0.1756357]
[1742472856023,0.56022792,85436.0,85435.0,0.1756357]
[1742472856620,0.57214688,85436.0,85435.0,0.1756357]
[1742472856922,0.56022792,85436.0,85435.0,0.1756357]
[1742472857329,0.56022792,85436.0,85435.0,0.38591709]
[1742472858434,0.57022792,85436.0,85435.0,0.38591709]
[1742472861034,0.57022792,85436.0,85435.0,0.1756357]
[1742472861920,0.20942792,85436.0,85435.0,0.1756357]
[1742472862735,0.57022792,85436.0,85435.0,0.1756357]
[1742472863026,0.09233682,85436.0,85435.0,0.1756357]
[1742472863232,0.09233682,85436.0,85435.0,0.2088357]
[1742472864031,0.20942792,85436.0,85435.0,0.2088357]
[1742472864736,0.19942792,85436.0,85435.0,0.2088357]
[1742472864938,0.1869911,85436.0,85435.0,0.2088357]
[1742472865237,0.19942075,85436.0,85435.0,0.2088357]
[1742472867338,0.19942075,85436.0,85435.0,0.41911709]
[1742472869244,0.30942075,85436.0,85435.0,0.38591709]
[1742472869737,0.30944602,85436.0,85435.0,0.38591709]
[1742472870945,0.20944602,85436.0,85435.0,0.38591709]
[1742472871133,0.20944602,85436.0,85435.0,0.41721709]
[1742472871333,0.20944602,85436.0,85435.0,0.2069357]
[1742472873839,0.20943913,85436.0,85435.0,0.2069357]
[1742472874238,0.30943913,85436.0,85435.0,0.2069357]
[1742472874436,0.20943913,85436.0,85435.0,0.2069357]
[1742472875745,0.20942095,85436.0,85435.0,0.2069357]
[1742472877730,0.2094186,85436.0,85435.0,0.2069357]
[1742472878346,0.3094186,85436.0,85435.0,0.089846]
[1742472879348,0.2094186,85436.0,85435.0,0.089846]
[1742472879539,0.0923275,85436.0,85435.0,0.089846]
[1742472879739,0.2094186,85436.0,85435.0,0.089846]
[1742472879935,0.2094186,85436.0,85435.0,0.122746]
[1742472881046,0.20938811,85436.0,85435.0,0.122746]
[1742472881242,0.1969911,85436.0,85435.0,0.122746]
[1742472881442,0.20940194,85436.0,85435.0,0.122746]
[1742472882038,0.20940192,85436.0,85435.0,0.122746]
[1742472885744,0.20940192,85436.0,85435.0,0.0642]
[1742472886239,0.30940192,85436.0,85435.0,0.0642]
[1742472887152,0.20940192,85436.0,85435.0,0.39141625]
[1742472887749,0.05921082,85436.0,85435.0,0.39141625]
[1742472888049,0.02641082,85436.0,85435.0,0.39141625]
[1742472890054,0.02641082,85436.0,85435.0,0.1812925]
[1742472890753,0.14350192,85436.0,85435.0,0.1812925]
[1742472891252,0.17530192,85436.0,85435.0,0.1812925]
[1742472891450,0.1752597,85436.0,85435.0,0.1812925]
[1742472892152,0.17525971,85436.0,85435.0,0.1812925]
[1742472893647,0.05816861,85436.0,85435.0,0.1812925]
[1742472894041,0.17525971,85436.0,85435.0,0.1812925]
[1742472894647,0.05816861,85436.0,85435.0,0.1812925]
[1742472894950,0.17525971,85436.0,85435.0,0.1812925]
[1742472895157,0.05816861,85436.0,85435.0,0.1812925]
[1742472895349,0.004,85436.0,85435.0,0.2963725]
[1742472895854,0.004,85436.0,85435.0,1.81109355]
[1742472896351,0.004,85436.0,85435.0,0.31109355]
[1742472896660,0.004,85436.0,85435.0,0.52140327]
[1742472896953,0.004,85436.0,85435.0,2.02140327]
[1742472897355,0.004,85436.0,85435.0,0.52140327]
[1742472898056,0.004,85436.0,85435.0,0.52140425]
[1742472898852,0.004,85436.0,85435.0,0.50668222]
[1742472899354,0.004,85436.0,85435.0,0.5212873]
[1742472899754,0.004,85436.0,85435.0,0.59135277]
[1742472901655,0.24329014,85436.0,85435.0,0.43036769]
[1742472901862,0.30519014,85436.0,85435.0,0.43036769]
[1742472902260,0.20519014,85436.0,85435.0,0.43036769]
[1742472902963,0.20519014,85436.0,85435.0,0.1499925]
[1742472903259,0.21678517,85436.0,85435.0,0.1499925]
[1742472904164,0.20519014,85436.0,85435.0,0.1499925]
[1742472904859,0.07809904,85436.0,85435.0,0.1824925]
[1742472905061,0.0659,85436.0,85435.0,0.1824925]
[1742472906159,0.0659,85436.0,85435.0,0.39258528]
[1742472909054,0.0356,85436.0,85435.0,0.1824925]
[1742472909662,0.0356,85436.0,85435.0,1.6824925]
[1742472910462,0.0356,85436.0,85435.0,0.1824925]
[1742472911765,0.0689,85436.0,85435.0,0.1824925]
[1742472912267,0.1859911,85436.0,85435.0,0.1824925]
[1742472912765,0.2982358,85436.0,85435.0,0.0329]
[1742472912957,0.0585507,85429.0,85420.0,4e-05]
[1742472913158,0.1171117,85421.0,85420.0,4e-05]
[1742472913358,0.1611564,85421.0,85420.0,0.117153]
[1742472913561,0.1711564,85421.0,85420.0,0.117153]
[1742472913762,0.1711564,85421.0,85420.0,0.117113]
[1742472914161,0.2711564,85421.0,85420.0,0.147513]
[1742472914759,0.28290332,85421.0,85420.0,0.147513]
[1742472915069,0.28190332,85421.0,85420.0,0.147513]
[1742472915265,0.28190332,85421.0,85420.0,0.148513]
[1742472915465,0.28189102,85421.0,85420.0,0.148513]
[1742472915668,0.27014502,85421.0,85420.0,0.148513]
[1742472916267,0.17014502,85421.0,85420.0,0.150513]
[1742472916458,0.21371659,85421.0,85420.0,0.150513]
[1742472916658,0.27013292,85421.0,85420.0,0.150513]
[1742472916859,0.05402122,85421.0,85420.0,0.150513]
[1742472917158,0.1589117,85421.0,85420.0,0.150513]
[1742472917359,0.20332989,85421.0,85420.0,0.150513]
[1742472917568,0.1911117,85421.0,85420.0,0.16226814]
[1742472918357,0.2911117,85421.0,85420.0,0.150513]
[1742472918558,0.1911117,85421.0,85420.0,0.150513]
[1742472918966,0.20333386,85421.0,85420.0,0.150513]
[1742472919161,0.1911117,85421.0,85420.0,0.150513]
[1742472924373,0.2911117,85421.0,85420.0,0.150513]
[1742472924871,0.2229117,85421.0,85420.0,0.0334]
[1742472925057,0.2911117,85421.0,85420.0,0.0334]
[1742472925373,0.2911117,85421.0,85420.0,0.150513]
[1742472926373,0.1911117,85421.0,85420.0,0.150513]
[1742472926670,0.1911117,85421.0,85420.0,0.181813]
[1742472927971,0.0422,85421.0,85420.0,0.181813]
[1742472928166,0.0422,85421.0,85420.0,0.212413]
[1742472928564,0.01,85421.0,85420.0,0.212413]
[1742472928871,0.00060001,85426.0,85425.0,0.1171062]
[1742472929075,0.00017554,85429.0,85428.0,0.1171021]
[1742472929271,0.00017554,85429.0,85428.0,0.1802021]
[1742472929468,0.0329,85437.0,85436.0,0.1170911]
[1742472929670,0.1499897,85437.0,85436.0,0.1170911]
[1742472929860,0.1499897,85437.0,85436.0,0.2107911]
[1742472930065,0.1807897,85437.0,85436.0,0.0631]
[1742472930366,0.1807897,85437.0,85436.0,0.1801911]
[1742472931670,0.1827897,85437.0,85436.0,0.1801911]
[1742472932673,0.1847897,85437.0,85436.0,0.1801911]
[1742472933575,0.0369,85437.0,85436.0,0.1801911]
[1742472933771,0.1539897,85437.0,85436.0,0.1801911]
[1742472936578,0.004,85437.0,85436.0,0.1801911]
[1742472936770,0.1210897,85437.0,85436.0,0.1801911]
[1742472936966,0.004,85437.0,85436.0,0.1801911]
[1742472938179,0.1210897,85437.0,85436.0,0.1801911]
[1742472939382,0.1838897,85437.0,85436.0,0.1801911]
[1742472939878,0.1536897,85437.0,85436.0,0.1801911]
[1742472946486,0.1849897,85437.0,85436.0,0.1801911]
[1742472948383,0.2176897,85437.0,85436.0,0.1801911]
[1742472951272,0.4976897,85437.0,85436.0,0.0317]
[1742472951478,0.4976897,85437.0,85429.0,0.0585498]
[1742472951479,0.1170993,85430.0,85429.0,0.1170991]
[1742472952178,0.0658,85430.0,85429.0,0.1170991]
[1742472953080,0.0668,85430.0,85429.0,0.1290527]
[1742472953278,0.035,85430.0,85429.0,0.1290527]
[1742472953888,0.002,85430.0,85429.0,0.1622527]
[1742472956478,0.002,85430.0,85429.0,0.1946527]
[1742472957883,0.001,85430.0,85429.0,0.1946527]
[1742472958188,0.002,85430.0,85429.0,0.1946527]
[1742472958685,0.0662,85430.0,85429.0,0.1946527]
[1742472958885,0.0652,85430.0,85429.0,0.1946527]
[1742472961789,0.1822993,85430.0,85429.0,0.1946527]
[1742472963987,0.1822993,85430.0,85429.0,0.1170991]
[1742472964295,0.1171007,85429.0,85428.0,0.1171413]
[1742472964490,0.1171007,85429.0,85428.0,0.16002503]
[1742472964686,0.1493007,85429.0,85428.0,0.1481413]
[1742472964882,0.1493007,85429.0,85428.0,0.1481013]
[1742472965079,0.0322,85429.0,85428.0,0.1481013]
[1742472965280,0.0636,85429.0,85428.0,0.1802013]
[1742472965889,0.1807007,85429.0,85428.0,0.1802013]
[1742472967992,0.0636,85429.0,85428.0,0.1802013]
[1742472968391,0.1807007,85429.0,85428.0,0.1802013]
[1742472970897,0.1807007,85429.0,85428.0,0.1171013]
[1742472971486,0.1807007,85429.0,85428.0,0.1495013]
[1742472971800,0.1807007,85429.0,85428.0,0.1796013]
[1742472974089,0.2807007,85429.0,85428.0,0.1796013]
[1742472974295,0.2807007,85429.0,85428.0,0.1171013]
[1742472974688,0.2107007,85429.0,85428.0,0.1171013]
[1742472975000,0.3107007,85429.0,85428.0,0.1171013]
[1742472975289,0.2107007,85429.0,85428.0,0.1171013]
[1742472975891,0.2107007,85429.0,85428.0,0.1798013]
[1742472978788,0.0936,85429.0,85428.0,0.1798013]
[1742472979393,0.0936,85429.0,85428.0,1.6798013]
[1742472979596,0.17599033,85437.0,85436.0,0.1170911]
[1742472979793,0.21914496,85437.0,85436.0,0.1170911]
[1742472980100,0.20699032,85437.0,85436.0,0.2112911]
[1742472980693,0.0316,85437.0,85436.0,0.2112911]
[1742472980904,0.17539032,85439.0,85438.0,0.1170884]
[1742472981296,0.17539032,85439.0,85438.0,0.1480884]
[1742472981501,0.17539032,85439.0,85438.0,0.1787884]
[1742472981803,0.17539032,85439.0,85438.0,0.19340075]
[1742472982190,0.18139032,85439.0,85438.0,0.20804056]
[1742472983803,0.18139032,85439.0,85438.0,0.19342821]
[1742472984606,0.006,85439.0,85438.0,0.19342821]
[1742472985207,0.006,85439.0,85438.0,0.1787884]
[1742472986304,0.006,85439.0,85438.0,0.6295884]
[1742472986509,0.0309,85454.0,85453.0,0.1170678]
[1742472987203,0.0309,85454.0,85453.0,0.1779678]
[1742472987404,0.1479665,85454.0,85453.0,0.1779678]
[1742472987805,0.1539665,85454.0,85453.0,0.1779678]
[1742472987999,0.1539665,85454.0,85453.0,0.0305]
[1742472988206,0.2183665,85454.0,85453.0,0.0305]
[1742472988407,0.2153665,85454.0,85453.0,0.1475678]
[1742472988614,0.2183665,85454.0,85453.0,0.1777678]
[1742472989315,0.2183665,85454.0,85453.0,0.1475678]
[1742472990102,0.2183665,85454.0,85453.0,0.15642332]
[1742472990299,0.2183665,85454.0,85453.0,0.03935552]
[1742472990707,0.2183665,85454.0,85453.0,0.15642332]
[1742472991312,0.2183665,85454.0,85453.0,0.12592332]
[1742472991704,0.2183665,85454.0,85453.0,0.15602332]
[1742472993113,0.2183665,85454.0,85453.0,0.03895552]
[1742472993310,0.2183665,85454.0,85453.0,0.15602332]
[1742472995415,0.2183665,85454.0,85453.0,0.18902332]
[1742473004419,0.2183665,85454.0,85453.0,0.03895552]
[1742473004623,0.2183665,85454.0,85453.0,0.15602332]
[1742473004821,0.2183665,85454.0,85453.0,0.18922332]
[1742473007515,0.3183665,85454.0,85453.0,0.07215552]
[1742473007811,0.2183665,85454.0,85453.0,0.18922332]
[1742473008423,0.2501665,85454.0,85453.0,0.03895552]
[1742473008617,0.1170774,85446.0,85445.0,0.00017554]
[1742473008819,0.2170774,85446.0,85445.0,0.00017554]
[1742473009017,0.35325798,85446.0,85445.0,0.00017554]
[1742473009221,0.41705798,85446.0,85445.0,0.00017554]
[1742473009719,0.1170856,85440.0,85435.0,0.28069622]
[1742473009922,0.1170856,85440.0,85435.0,0.39778842]
[1742473009923,0.60990618,85440.0,85435.0,0.39778842]
[1742473010228,0.1170897,85437.0,85436.0,0.34959681]
[1742473010421,0.33061028,85437.0,85436.0,0.34959681]
[1742473010723,0.33061028,85437.0,85436.0,0.46668791]
[1742473010916,0.33061028,85437.0,85436.0,0.34959681]
[1742473011112,0.36171028,85437.0,85436.0,0.46668791]
[1742473011325,0.36168736,85437.0,85436.0,0.46668791]
[1742473012125,0.42438736,85437.0,85436.0,0.46668791]
[1742473012325,0.36168736,85437.0,85436.0,0.46668791]
[1742473012820,0.36268736,85437.0,85436.0,0.46668791]
[1742473013126,0.36268736,85437.0,85436.0,0.49748791]
[1742473013326,0.36466349,85437.0,85436.0,0.52928791]
[1742473013627,0.36466349,85437.0,85436.0,0.1796911]
[1742473013831,0.3646637,85437.0,85436.0,0.1796911]
[1742473014127,0.4153897,85437.0,85436.0,0.0626]
[1742473014313,0.1170911,85436.0,85435.0,4e-05]
[1742473014516,0.1982911,85436.0,85435.0,0.1171325]
[1742473014725,0.3314911,85436.0,85435.0,0.1171325]
[1742473015728,0.2687911,85436.0,85435.0,0.1494325]
[1742473015927,0.2697911,85436.0,85435.0,0.1494325]
[1742473016322,0.3324911,85436.0,85435.0,0.03234]
[1742473016523,0.2324911,85436.0,85435.0,0.03234]
[1742473016722,0.3324911,85436.0,85435.0,0.03234]
[1742473017130,0.3344911,85436.0,85435.0,0.03234]
[1742473017321,0.3344911,85436.0,85435.0,0.1801325]
[1742473018230,0.3344911,85436.0,85435.0,0.06304]
[1742473018435,0.2174,85436.0,85430.0,1e-07]
[1742473018628,0.1171035,85427.0,85426.0,4e-08]
[1742473018826,0.1171117,85421.0,85420.0,0.0307]
[1742473019022,0.5979117,85421.0,85420.0,0.0307]
[1742473019623,0.6640117,85421.0,85420.0,0.0307]
[1742473020226,0.6013117,85421.0,85420.0,0.149813]
[1742473020824,0.6003117,85421.0,85420.0,0.182713]
[1742473021834,0.6003117,85421.0,85420.0,0.184713]
[1742473022630,0.5673117,85421.0,85420.0,0.184713]
[1742473022832,0.5300117,85421.0,85420.0,0.184713]
[1742473023523,0.6300117,85421.0,85420.0,0.184713]
[1742473024042,0.5300117,85421.0,85420.0,0.184713]
[1742473025326,0.6300117,85421.0,85420.0,0.0676]
[1742473025526,0.5618117,85421.0,85420.0,0.0676]
[1742473025727,0.5300117,85421.0,85420.0,0.0347]
[1742473025929,0.5934117,85421.0,85420.0,0.0347]
[1742473026128,0.5616117,85421.0,85420.0,0.151813]
[1742473027737,0.5616117,85421.0,85420.0,0.0347]
[1742473028639,0.5934117,85421.0,85420.0,0.0347]
[1742473028831,0.5616117,85421.0,85420.0,0.151813]
[1742473029233,0.5934117,85421.0,85420.0,0.151813]
[1742473029433,0.6616117,85421.0,85420.0,0.151813]
[1742473029634,0.6616117,85421.0,85420.0,0.0347]
[1742473030031,0.5616117,85421.0,85420.0,0.182013]
[1742473030938,0.6938117,85421.0,85420.0,0.0649]
[1742473031338,0.5938117,85421.0,85420.0,0.0649]
[1742473031532,0.5938117,85421.0,85420.0,0.0347]
[1742473031731,0.5938117,85421.0,85412.0,0.00017554]
[1742473031732,0.1171226,85413.0,85412.0,0.00017554]
[1742473032035,0.4879226,85413.0,85412.0,0.03257554]
[1742473032537,0.5212226,85413.0,85412.0,0.03257554]
[1742473032935,0.5212226,85413.0,85412.0,0.03657554]
[1742473033134,0.5534226,85413.0,85412.0,0.03657554]
[1742473033635,0.5534226,85413.0,85412.0,0.15769954]
[1742473033836,0.5212226,85413.0,85412.0,0.18809954]
[1742473034340,0.5212226,85413.0,85412.0,0.21999954]
[1742473034541,0.4879226,85413.0,85412.0,0.21999954]
[1742473037247,0.3608,85413.0,85412.0,0.21999954]
[1742473037447,0.01202806,85429.0,85428.0,0.1171021]
[1742473037643,0.02202806,85429.0,85428.0,0.1171021]
[1742473037838,0.02202806,85429.0,85428.0,0.1783021]
[1742473038146,0.1756429,85435.0,85434.0,0.1170939]
[1742473038648,0.0585462,85435.0,85434.0,0.1170939]
[1742473039040,0.0585462,85435.0,85434.0,0.1782939]
[1742473039445,0.0605462,85435.0,85434.0,0.2923339]
[1742473040147,0.0625462,85435.0,85434.0,0.2923339]
[1742473041545,0.0625462,85435.0,85434.0,0.18694751]
[1742473041745,0.0625462,85435.0,85434.0,0.17524]
[1742473041943,0.0725462,85435.0,85434.0,0.17524]
[1742473042251,0.0725462,85435.0,85434.0,0.0612]
[1742473042444,0.1370462,85435.0,85434.0,0.0612]
[1742473042757,0.1687462,85435.0,85434.0,0.0612]
[1742473044445,0.2687462,85435.0,85434.0,0.0612]
[1742473046957,0.2687462,85435.0,85434.0,0.1782939]
[1742473047157,0.2687462,85435.0,85434.0,0.0612]
[1742473049055,0.1687462,85435.0,85434.0,0.0612]
[1742473049362,0.2370462,85435.0,85434.0,0.1782939]
[1742473049553,0.1370462,85435.0,85434.0,0.1782939]
[1742473049751,0.2041462,85435.0,85434.0,0.1782939]
[1742473050658,0.1041462,85435.0,85434.0,0.0612]
[1742473050966,0.2041462,85435.0,85434.0,0.0612]
[1742473053052,0.0725462,85435.0,85434.0,0.0612]
[1742473053950,0.0725462,85435.0,85434.0,0.1782939]
[1742473058358,0.1373462,85435.0,85434.0,0.1782939]
[1742473060670,0.1373462,85435.0,85434.0,0.19287395]
[1742473062064,0.1373462,85435.0,85434.0,0.07578005]
[1742473062362,0.1373462,85435.0,85434.0,0.19287395]
[1742473064961,0.2373462,85435.0,85434.0,0.19287395]
[1742473066463,0.1373462,85435.0,85434.0,0.19287395]
[1742473066667,0.1373462,85435.0,85434.0,0.1782939]
[1742473066964,0.1049462,85435.0,85434.0,0.1782939]
[1742473068672,0.004,85435.0,85434.0,0.1782939]
[1742473068970,0.1210925,85435.0,85434.0,0.1782939]
[1742473069387,0.004,85435.0,85434.0,0.2921339]
[1742473070071,4e-05,85454.0,85452.0,0.1170692]
[1742473070270,0.24046839,85453.0,85452.0,0.5917492]
[1742473070474,0.21046839,85453.0,85452.0,0.6857492]
[1742473070769,0.21046839,85455.0,85454.0,0.1170665]
[1742473070966,0.21054839,85455.0,85454.0,0.1802665]
[1742473071364,0.32761349,85455.0,85454.0,0.1922597]
[1742473071574,0.32761349,85455.0,85454.0,0.20105566]
[1742473071766,0.32753349,85455.0,85454.0,0.20105566]
[1742473072169,0.32753349,85455.0,85454.0,0.21105566]
[1742473072380,0.33153349,85455.0,85454.0,0.21105566]
[1742473073469,0.33153349,85455.0,85454.0,0.32541566]
[1742473073670,0.33553349,85455.0,85454.0,0.32541566]
[1742473073867,0.1250651,85455.0,85454.0,0.32541566]
[1742473074376,0.008,85455.0,85454.0,0.32541566]
[1742473077469,0.0396,85455.0,85454.0,0.32541566]
[1742473077674,0.1566651,85455.0,85454.0,0.32541566]
[1742473078972,0.1566651,85455.0,85454.0,0.33541566]
[1742473079168,0.1566651,85455.0,85454.0,0.31541566]
[1742473079370,0.1566651,85455.0,85454.0,0.32541566]
[1742473079570,0.0396,85455.0,85454.0,0.31541566]
[1742473080578,0.1566651,85455.0,85454.0,0.31541566]
[1742473083386,0.1566651,85455.0,85454.0,0.17005566]
[1742473083682,0.1566651,85455.0,85454.0,0.28401566]
[1742473084279,0.2566651,85455.0,85454.0,0.28401566]
[1742473085385,0.1892651,85455.0,85454.0,0.28401566]
[1742473085790,0.1892651,85455.0,85454.0,0.17005566]
[1742473086482,4e-05,85471.0,85470.0,0.1170445]
[1742473086684,0.21046839,85481.0,85474.0,0.0585188]
[1742473086880,1e-07,85484.0,85483.0,0.1170267]
[1742473087186,4e-05,85491.0,85490.0,0.1170172]
[1742473087483,0.02004,85491.0,85490.0,2.0919772]
[1742473087679,4e-05,85491.0,85490.0,2.0919772]
[1742473088185,4e-05,85491.0,85490.0,2.1561772]
[1742473088589,0.03184,85491.0,85490.0,2.1561772]
[1742473088786,4e-05,85491.0,85490.0,2.16777307]
[1742473089686,0.24554646,85492.0,85491.0,0.1170158]
[1742473090185,0.24554646,85492.0,85491.0,0.1804158]
[1742473090986,0.46598557,85507.0,85501.0,0.1170021]
[1742473091190,0.03184,85505.0,85504.0,0.116998]
[1742473091790,0.0318,85505.0,85504.0,0.116998]
[1742473092680,0.00017544,85513.0,85507.0,0.1169939]
[1742473092888,0.0323,85512.0,85511.0,0.1169884]
[1742473093184,0.0323,85512.0,85511.0,0.1494884]
[1742473093386,0.0323,85512.0,85511.0,0.1816884]
[1742473094378,0.151287,85512.0,85511.0,0.1816884]
[1742473095089,0.151287,85512.0,85511.0,0.19050524]
[1742473095793,0.0343,85512.0,85511.0,0.20241118]
[1742473095991,0.065,85512.0,85511.0,0.20241118]
[1742473096389,0.181987,85512.0,85511.0,0.20241118]
[1742473096589,0.065,85512.0,85511.0,0.20241118]
[1742473097098,0.002,85512.0,85511.0,0.20241118]
[1742473097394,0.002,85512.0,85511.0,0.31645118]
[1742473098092,0.00275996,85512.0,85511.0,0.31645118]
[1742473099086,4e-05,85520.0,85519.0,0.1169775]
[1742473099288,4e-05,85520.0,85519.0,0.5917375]
[1742473099501,0.03214,85520.0,85519.0,0.5917375]
[1742473099691,0.3608,85530.0,85529.0,0.1169638]
[1742473099893,0.3608,85530.0,85529.0,0.2309638]
[1742473100101,0.1812542,85536.0,85535.0,0.1169556]
[1742473100293,0.1912542,85536.0,85535.0,0.1169556]
[1742473100706,0.2912542,85536.0,85535.0,0.1169556]
[1742473100902,0.116957,85534.0,85533.0,0.0584786]
[1742473101305,0.1169652,85528.0,85527.0,0.4777661]
[1742473101499,0.1169652,85528.0,85527.0,0.5918861]
[1742473102105,0.2496652,85528.0,85527.0,0.5918865]
[1742473102294,0.1496652,85528.0,85527.0,0.5918865]
[1742473104802,0.2496652,85528.0,85527.0,0.5918865]
[1742473105003,0.1496652,85528.0,85527.0,0.5918865]
[1742473106416,0.2496652,85528.0,85527.0,0.5918865]
[1742473106714,0.2496652,85528.0,85521.0,0.07009665]
[1742473106715,0.1169734,85522.0,85521.0,0.11445544]
[1742473107017,0.2169734,85522.0,85521.0,0.23143014]
[1742473107216,0.1169734,85522.0,85521.0,0.23143014]
[1742473107900,0.1800734,85522.0,85521.0,0.23143014]
[1742473111019,0.0631,85522.0,85521.0,0.23143014]
[1742473112119,0.0316,85522.0,85521.0,0.23143014]
[1742473113404,0.1169707,85524.0,85523.0,0.116972]
[1742473113715,0.1754522,85529.0,85528.0,0.2339245]
[1742473113910,0.1854522,85529.0,85528.0,0.3492445]
[1742473115014,0.19740194,85529.0,85528.0,0.2322834]
[1742473115604,0.29740194,85529.0,85528.0,0.11532]
[1742473115807,0.19740194,85529.0,85528.0,0.11532]
[1742473116015,0.19740194,85529.0,85528.0,0.2322852]
[1742473116515,0.19740194,85529.0,85528.0,0.2644852]